Workbook

Sheet Sheet1
A1: 0 | B1: 0 | C1: 1 | D1: 1 | E1: 1 | F1: 0 | G1: 0 | H1: 0 | M1: 0 | N1: 0 | O1: 0 | P1: 0 | Q1: 0 | R1: 0 | S1: 0 | T1: 0 | Y1: 1 | Z1: 1 | AA1: 1 | AB1: 1 | AC1: 1 | AD1: 1 | AE1: 1 | AF1: 1
A2: 0 | B2: 1 | C2: 0 | D2: 0 | E2: 0 | F2: 1 | G2: 1 | H2: 0 | M2: 0 | N2: 0 | O2: 1 | P2: 0 | Q2: 0 | R2: 0 | S2: 0 | T2: 0 | Y2: 1 | Z2: 0 | AA2: 0 | AB2: 0 | AC2: 0 | AD2: 0 | AE2: 0 | AF2: 1
A3: 0 | B3: 1 | C3: 0 | D3: 1 | E3: 0 | F3: 0 | G3: 0 | H3: 1 | J3: =A10&","&B10&","&C10&","&D10&","&E10&","&F10&","&G10&","&H10 -> 0,102,153,69,145,202,34,28 | M3: 0 | N3: 1 | O3: 1 | P3: 0 | Q3: 0 | R3: 0 | S3: 0 | T3: 0 | V3: =M10&","&N10&","&O10&","&P10&","&Q10&","&R10&","&S10&","&T10 -> 0,4,254,0,0,240,80,32 | Y3: 1 | Z3: 0 | AA3: 0 | AB3: 0 | AC3: 0 | AD3: 0 | AE3: 0 | AF3: 1 | AH3: =Y10&","&Z10&","&AA10&","&AB10&","&AC10&","&AD10&","&AE10&","&AF10 -> 255,129,129,129,129,129,129,255
A4: 0 | B4: 0 | C4: 1 | D4: 0 | E4: 0 | F4: 1 | G4: 0 | H4: 1 | M4: 0 | N4: 0 | O4: 1 | P4: 0 | Q4: 0 | R4: 0 | S4: 0 | T4: 0 | Y4: 1 | Z4: 0 | AA4: 0 | AB4: 0 | AC4: 0 | AD4: 0 | AE4: 0 | AF4: 1
A5: 0 | B5: 0 | C5: 1 | D5: 0 | E5: 1 | F5: 0 | G5: 0 | H5: 1 | M5: 0 | N5: 0 | O5: 1 | P5: 0 | Q5: 0 | R5: 1 | S5: 1 | T5: 0 | Y5: 1 | Z5: 0 | AA5: 0 | AB5: 0 | AC5: 0 | AD5: 0 | AE5: 0 | AF5: 1
A6: 0 | B6: 1 | C6: 0 | D6: 0 | E6: 0 | F6: 0 | G6: 1 | H6: 0 | M6: 0 | N6: 0 | O6: 1 | P6: 0 | Q6: 0 | R6: 1 | S6: 0 | T6: 1 | Y6: 1 | Z6: 0 | AA6: 0 | AB6: 0 | AC6: 0 | AD6: 0 | AE6: 0 | AF6: 1
A7: 0 | B7: 1 | C7: 0 | D7: 1 | E7: 0 | F7: 1 | G7: 0 | H7: 0 | M7: 0 | N7: 0 | O7: 1 | P7: 0 | Q7: 0 | R7: 1 | S7: 1 | T7: 0 | Y7: 1 | Z7: 0 | AA7: 0 | AB7: 0 | AC7: 0 | AD7: 0 | AE7: 0 | AF7: 1
A8: 0 | B8: 0 | C8: 1 | D8: 0 | E8: 1 | F8: 1 | G8: 0 | H8: 0 | M8: 0 | N8: 0 | O8: 1 | P8: 0 | Q8: 0 | R8: 1 | S8: 0 | T8: 0 | Y8: 1 | Z8: 1 | AA8: 1 | AB8: 1 | AC8: 1 | AD8: 1 | AE8: 1 | AF8: 1
A10: =(A1*1)+(A2*2)+(A3*4)+(A4*8)+(A5*16)+(A6*32)+(A7*64)+(A8*128) -> 0 | B10: =(B1*1)+(B2*2)+(B3*4)+(B4*8)+(B5*16)+(B6*32)+(B7*64)+(B8*128) -> 102 | C10: =(C1*1)+(C2*2)+(C3*4)+(C4*8)+(C5*16)+(C6*32)+(C7*64)+(C8*128) -> 153 | D10: =(D1*1)+(D2*2)+(D3*4)+(D4*8)+(D5*16)+(D6*32)+(D7*64)+(D8*128) -> 69 | E10: =(E1*1)+(E2*2)+(E3*4)+(E4*8)+(E5*16)+(E6*32)+(E7*64)+(E8*128) -> 145 | F10: =(F1*1)+(F2*2)+(F3*4)+(F4*8)+(F5*16)+(F6*32)+(F7*64)+(F8*128) -> 202 | G10: =(G1*1)+(G2*2)+(G3*4)+(G4*8)+(G5*16)+(G6*32)+(G7*64)+(G8*128) -> 34 | H10: =(H1*1)+(H2*2)+(H3*4)+(H4*8)+(H5*16)+(H6*32)+(H7*64)+(H8*128) -> 28 | M10: =(M1*1)+(M2*2)+(M3*4)+(M4*8)+(M5*16)+(M6*32)+(M7*64)+(M8*128) -> 0 | N10: =(N1*1)+(N2*2)+(N3*4)+(N4*8)+(N5*16)+(N6*32)+(N7*64)+(N8*128) -> 4 | O10: =(O1*1)+(O2*2)+(O3*4)+(O4*8)+(O5*16)+(O6*32)+(O7*64)+(O8*128) -> 254 | P10: =(P1*1)+(P2*2)+(P3*4)+(P4*8)+(P5*16)+(P6*32)+(P7*64)+(P8*128) -> 0 | Q10: =(Q1*1)+(Q2*2)+(Q3*4)+(Q4*8)+(Q5*16)+(Q6*32)+(Q7*64)+(Q8*128) -> 0 | R10: =(R1*1)+(R2*2)+(R3*4)+(R4*8)+(R5*16)+(R6*32)+(R7*64)+(R8*128) -> 240 | S10: =(S1*1)+(S2*2)+(S3*4)+(S4*8)+(S5*16)+(S6*32)+(S7*64)+(S8*128) -> 80 | T10: =(T1*1)+(T2*2)+(T3*4)+(T4*8)+(T5*16)+(T6*32)+(T7*64)+(T8*128) -> 32 | Y10: =(Y1*1)+(Y2*2)+(Y3*4)+(Y4*8)+(Y5*16)+(Y6*32)+(Y7*64)+(Y8*128) -> 255 | Z10: =(Z1*1)+(Z2*2)+(Z3*4)+(Z4*8)+(Z5*16)+(Z6*32)+(Z7*64)+(Z8*128) -> 129 | AA10: =(AA1*1)+(AA2*2)+(AA3*4)+(AA4*8)+(AA5*16)+(AA6*32)+(AA7*64)+(AA8*128) -> 129 | AB10: =(AB1*1)+(AB2*2)+(AB3*4)+(AB4*8)+(AB5*16)+(AB6*32)+(AB7*64)+(AB8*128) -> 129 | AC10: =(AC1*1)+(AC2*2)+(AC3*4)+(AC4*8)+(AC5*16)+(AC6*32)+(AC7*64)+(AC8*128) -> 129 | AD10: =(AD1*1)+(AD2*2)+(AD3*4)+(AD4*8)+(AD5*16)+(AD6*32)+(AD7*64)+(AD8*128) -> 129 | AE10: =(AE1*1)+(AE2*2)+(AE3*4)+(AE4*8)+(AE5*16)+(AE6*32)+(AE7*64)+(AE8*128) -> 129 | AF10: =(AF1*1)+(AF2*2)+(AF3*4)+(AF4*8)+(AF5*16)+(AF6*32)+(AF7*64)+(AF8*128) -> 255
A13: 0 | B13: 1 | C13: 1 | D13: 1 | E13: 1 | F13: 0 | G13: 0 | H13: 0 | M13: 0 | N13: 0 | O13: 0 | P13: 0 | Q13: 0 | R13: 0 | S13: 0 | T13: 0 | Y13: 0 | Z13: 0 | AA13: 0 | AB13: 0 | AC13: 0 | AD13: 0 | AE13: 0 | AF13: 0
A14: 0 | B14: 1 | C14: 0 | D14: 0 | E14: 1 | F14: 1 | G14: 0 | H14: 0 | M14: 1 | N14: 1 | O14: 1 | P14: 1 | Q14: 0 | R14: 0 | S14: 0 | T14: 0 | Y14: 0 | Z14: 1 | AA14: 1 | AB14: 1 | AC14: 1 | AD14: 1 | AE14: 1 | AF14: 0
A15: 0 | B15: 1 | C15: 0 | D15: 0 | E15: 1 | F15: 0 | G15: 1 | H15: 0 | J15: =A22&","&B22&","&C22&","&D22&","&E22&","&F22&","&G22&","&H22 -> 0,255,129,129,143,138,140,248 | M15: 0 | N15: 0 | O15: 0 | P15: 1 | Q15: 0 | R15: 0 | S15: 0 | T15: 0 | V15: =M22&","&N22&","&O22&","&P22&","&Q22&","&R22&","&S22&","&T22 -> 242,146,146,158,0,240,80,32 | Y15: 0 | Z15: 1 | AA15: 0 | AB15: 0 | AC15: 0 | AD15: 0 | AE15: 1 | AF15: 0 | AH15: =Y22&","&Z22&","&AA22&","&AB22&","&AC22&","&AD22&","&AE22&","&AF22 -> 0,126,66,66,66,66,126,0
A16: 0 | B16: 1 | C16: 0 | D16: 0 | E16: 1 | F16: 1 | G16: 1 | H16: 1 | M16: 0 | N16: 0 | O16: 0 | P16: 1 | Q16: 0 | R16: 0 | S16: 0 | T16: 0 | Y16: 0 | Z16: 1 | AA16: 0 | AB16: 0 | AC16: 0 | AD16: 0 | AE16: 1 | AF16: 0
A17: 0 | B17: 1 | C17: 0 | D17: 0 | E17: 0 | F17: 0 | G17: 0 | H17: 1 | M17: 1 | N17: 1 | O17: 1 | P17: 1 | Q17: 0 | R17: 1 | S17: 1 | T17: 0 | Y17: 0 | Z17: 1 | AA17: 0 | AB17: 0 | AC17: 0 | AD17: 0 | AE17: 1 | AF17: 0
A18: 0 | B18: 1 | C18: 0 | D18: 0 | E18: 0 | F18: 0 | G18: 0 | H18: 1 | M18: 1 | N18: 0 | O18: 0 | P18: 0 | Q18: 0 | R18: 1 | S18: 0 | T18: 1 | Y18: 0 | Z18: 1 | AA18: 0 | AB18: 0 | AC18: 0 | AD18: 0 | AE18: 1 | AF18: 0
A19: 0 | B19: 1 | C19: 0 | D19: 0 | E19: 0 | F19: 0 | G19: 0 | H19: 1 | M19: 1 | N19: 0 | O19: 0 | P19: 0 | Q19: 0 | R19: 1 | S19: 1 | T19: 0 | Y19: 0 | Z19: 1 | AA19: 1 | AB19: 1 | AC19: 1 | AD19: 1 | AE19: 1 | AF19: 0
A20: 0 | B20: 1 | C20: 1 | D20: 1 | E20: 1 | F20: 1 | G20: 1 | H20: 1 | M20: 1 | N20: 1 | O20: 1 | P20: 1 | Q20: 0 | R20: 1 | S20: 0 | T20: 0 | Y20: 0 | Z20: 0 | AA20: 0 | AB20: 0 | AC20: 0 | AD20: 0 | AE20: 0 | AF20: 0
A22: =(A13*1)+(A14*2)+(A15*4)+(A16*8)+(A17*16)+(A18*32)+(A19*64)+(A20*128) -> 0 | B22: =(B13*1)+(B14*2)+(B15*4)+(B16*8)+(B17*16)+(B18*32)+(B19*64)+(B20*128) -> 255 | C22: =(C13*1)+(C14*2)+(C15*4)+(C16*8)+(C17*16)+(C18*32)+(C19*64)+(C20*128) -> 129 | D22: =(D13*1)+(D14*2)+(D15*4)+(D16*8)+(D17*16)+(D18*32)+(D19*64)+(D20*128) -> 129 | E22: =(E13*1)+(E14*2)+(E15*4)+(E16*8)+(E17*16)+(E18*32)+(E19*64)+(E20*128) -> 143 | F22: =(F13*1)+(F14*2)+(F15*4)+(F16*8)+(F17*16)+(F18*32)+(F19*64)+(F20*128) -> 138 | G22: =(G13*1)+(G14*2)+(G15*4)+(G16*8)+(G17*16)+(G18*32)+(G19*64)+(G20*128) -> 140 | H22: =(H13*1)+(H14*2)+(H15*4)+(H16*8)+(H17*16)+(H18*32)+(H19*64)+(H20*128) -> 248 | M22: =(M13*1)+(M14*2)+(M15*4)+(M16*8)+(M17*16)+(M18*32)+(M19*64)+(M20*128) -> 242 | N22: =(N13*1)+(N14*2)+(N15*4)+(N16*8)+(N17*16)+(N18*32)+(N19*64)+(N20*128) -> 146 | O22: =(O13*1)+(O14*2)+(O15*4)+(O16*8)+(O17*16)+(O18*32)+(O19*64)+(O20*128) -> 146 | P22: =(P13*1)+(P14*2)+(P15*4)+(P16*8)+(P17*16)+(P18*32)+(P19*64)+(P20*128) -> 158 | Q22: =(Q13*1)+(Q14*2)+(Q15*4)+(Q16*8)+(Q17*16)+(Q18*32)+(Q19*64)+(Q20*128) -> 0 | R22: =(R13*1)+(R14*2)+(R15*4)+(R16*8)+(R17*16)+(R18*32)+(R19*64)+(R20*128) -> 240 | S22: =(S13*1)+(S14*2)+(S15*4)+(S16*8)+(S17*16)+(S18*32)+(S19*64)+(S20*128) -> 80 | T22: =(T13*1)+(T14*2)+(T15*4)+(T16*8)+(T17*16)+(T18*32)+(T19*64)+(T20*128) -> 32 | Y22: =(Y13*1)+(Y14*2)+(Y15*4)+(Y16*8)+(Y17*16)+(Y18*32)+(Y19*64)+(Y20*128) -> 0 | Z22: =(Z13*1)+(Z14*2)+(Z15*4)+(Z16*8)+(Z17*16)+(Z18*32)+(Z19*64)+(Z20*128) -> 126 | AA22: =(AA13*1)+(AA14*2)+(AA15*4)+(AA16*8)+(AA17*16)+(AA18*32)+(AA19*64)+(AA20*128) -> 66 | AB22: =(AB13*1)+(AB14*2)+(AB15*4)+(AB16*8)+(AB17*16)+(AB18*32)+(AB19*64)+(AB20*128) -> 66 | AC22: =(AC13*1)+(AC14*2)+(AC15*4)+(AC16*8)+(AC17*16)+(AC18*32)+(AC19*64)+(AC20*128) -> 66 | AD22: =(AD13*1)+(AD14*2)+(AD15*4)+(AD16*8)+(AD17*16)+(AD18*32)+(AD19*64)+(AD20*128) -> 66 | AE22: =(AE13*1)+(AE14*2)+(AE15*4)+(AE16*8)+(AE17*16)+(AE18*32)+(AE19*64)+(AE20*128) -> 126 | AF22: =(AF13*1)+(AF14*2)+(AF15*4)+(AF16*8)+(AF17*16)+(AF18*32)+(AF19*64)+(AF20*128) -> 0
A25: 0 | B25: 0 | C25: 0 | D25: 0 | E25: 1 | F25: 0 | G25: 0 | H25: 0 | M25: 0 | N25: 0 | O25: 0 | P25: 0 | Q25: 0 | R25: 0 | S25: 0 | T25: 0 | Y25: 0 | Z25: 0 | AA25: 0 | AB25: 0 | AC25: 0 | AD25: 0 | AE25: 0 | AF25: 0
A26: 0 | B26: 0 | C26: 0 | D26: 0 | E26: 1 | F26: 0 | G26: 0 | H26: 0 | M26: 1 | N26: 1 | O26: 1 | P26: 1 | Q26: 0 | R26: 0 | S26: 0 | T26: 0 | Y26: 0 | Z26: 0 | AA26: 0 | AB26: 0 | AC26: 0 | AD26: 0 | AE26: 0 | AF26: 0
A27: 0 | B27: 0 | C27: 0 | D27: 0 | E27: 1 | F27: 0 | G27: 0 | H27: 0 | J27: =A34&","&B34&","&C34&","&D34&","&E34&","&F34&","&G34&","&H34 -> 56,40,56,8,255,168,232,8 | M27: 0 | N27: 0 | O27: 0 | P27: 1 | Q27: 0 | R27: 0 | S27: 0 | T27: 0 | V27: =M34&","&N34&","&O34&","&P34&","&Q34&","&R34&","&S34&","&T34 -> 146,146,146,254,0,240,80,32 | Y27: 0 | Z27: 0 | AA27: 1 | AB27: 1 | AC27: 1 | AD27: 1 | AE27: 0 | AF27: 0 | AH27: =Y34&","&Z34&","&AA34&","&AB34&","&AC34&","&AD34&","&AE34&","&AF34 -> 0,0,60,36,36,60,0,0
A28: 1 | B28: 1 | C28: 1 | D28: 1 | E28: 1 | F28: 1 | G28: 1 | H28: 1 | M28: 0 | N28: 0 | O28: 0 | P28: 1 | Q28: 0 | R28: 0 | S28: 0 | T28: 0 | Y28: 0 | Z28: 0 | AA28: 1 | AB28: 0 | AC28: 0 | AD28: 1 | AE28: 0 | AF28: 0
A29: 1 | B29: 0 | C29: 1 | D29: 0 | E29: 1 | F29: 0 | G29: 0 | H29: 0 | M29: 1 | N29: 1 | O29: 1 | P29: 1 | Q29: 0 | R29: 1 | S29: 1 | T29: 0 | Y29: 0 | Z29: 0 | AA29: 1 | AB29: 0 | AC29: 0 | AD29: 1 | AE29: 0 | AF29: 0
A30: 1 | B30: 1 | C30: 1 | D30: 0 | E30: 1 | F30: 1 | G30: 1 | H30: 0 | M30: 0 | N30: 0 | O30: 0 | P30: 1 | Q30: 0 | R30: 1 | S30: 0 | T30: 1 | Y30: 0 | Z30: 0 | AA30: 1 | AB30: 1 | AC30: 1 | AD30: 1 | AE30: 0 | AF30: 0
A31: 0 | B31: 0 | C31: 0 | D31: 0 | E31: 1 | F31: 0 | G31: 1 | H31: 0 | M31: 0 | N31: 0 | O31: 0 | P31: 1 | Q31: 0 | R31: 1 | S31: 1 | T31: 0 | Y31: 0 | Z31: 0 | AA31: 0 | AB31: 0 | AC31: 0 | AD31: 0 | AE31: 0 | AF31: 0
A32: 0 | B32: 0 | C32: 0 | D32: 0 | E32: 1 | F32: 1 | G32: 1 | H32: 0 | M32: 1 | N32: 1 | O32: 1 | P32: 1 | Q32: 0 | R32: 1 | S32: 0 | T32: 0 | Y32: 0 | Z32: 0 | AA32: 0 | AB32: 0 | AC32: 0 | AD32: 0 | AE32: 0 | AF32: 0
A34: =(A25*1)+(A26*2)+(A27*4)+(A28*8)+(A29*16)+(A30*32)+(A31*64)+(A32*128) -> 56 | B34: =(B25*1)+(B26*2)+(B27*4)+(B28*8)+(B29*16)+(B30*32)+(B31*64)+(B32*128) -> 40 | C34: =(C25*1)+(C26*2)+(C27*4)+(C28*8)+(C29*16)+(C30*32)+(C31*64)+(C32*128) -> 56 | D34: =(D25*1)+(D26*2)+(D27*4)+(D28*8)+(D29*16)+(D30*32)+(D31*64)+(D32*128) -> 8 | E34: =(E25*1)+(E26*2)+(E27*4)+(E28*8)+(E29*16)+(E30*32)+(E31*64)+(E32*128) -> 255 | F34: =(F25*1)+(F26*2)+(F27*4)+(F28*8)+(F29*16)+(F30*32)+(F31*64)+(F32*128) -> 168 | G34: =(G25*1)+(G26*2)+(G27*4)+(G28*8)+(G29*16)+(G30*32)+(G31*64)+(G32*128) -> 232 | H34: =(H25*1)+(H26*2)+(H27*4)+(H28*8)+(H29*16)+(H30*32)+(H31*64)+(H32*128) -> 8 | M34: =(M25*1)+(M26*2)+(M27*4)+(M28*8)+(M29*16)+(M30*32)+(M31*64)+(M32*128) -> 146 | N34: =(N25*1)+(N26*2)+(N27*4)+(N28*8)+(N29*16)+(N30*32)+(N31*64)+(N32*128) -> 146 | O34: =(O25*1)+(O26*2)+(O27*4)+(O28*8)+(O29*16)+(O30*32)+(O31*64)+(O32*128) -> 146 | P34: =(P25*1)+(P26*2)+(P27*4)+(P28*8)+(P29*16)+(P30*32)+(P31*64)+(P32*128) -> 254 | Q34: =(Q25*1)+(Q26*2)+(Q27*4)+(Q28*8)+(Q29*16)+(Q30*32)+(Q31*64)+(Q32*128) -> 0 | R34: =(R25*1)+(R26*2)+(R27*4)+(R28*8)+(R29*16)+(R30*32)+(R31*64)+(R32*128) -> 240 | S34: =(S25*1)+(S26*2)+(S27*4)+(S28*8)+(S29*16)+(S30*32)+(S31*64)+(S32*128) -> 80 | T34: =(T25*1)+(T26*2)+(T27*4)+(T28*8)+(T29*16)+(T30*32)+(T31*64)+(T32*128) -> 32 | Y34: =(Y25*1)+(Y26*2)+(Y27*4)+(Y28*8)+(Y29*16)+(Y30*32)+(Y31*64)+(Y32*128) -> 0 | Z34: =(Z25*1)+(Z26*2)+(Z27*4)+(Z28*8)+(Z29*16)+(Z30*32)+(Z31*64)+(Z32*128) -> 0 | AA34: =(AA25*1)+(AA26*2)+(AA27*4)+(AA28*8)+(AA29*16)+(AA30*32)+(AA31*64)+(AA32*128) -> 60 | AB34: =(AB25*1)+(AB26*2)+(AB27*4)+(AB28*8)+(AB29*16)+(AB30*32)+(AB31*64)+(AB32*128) -> 36 | AC34: =(AC25*1)+(AC26*2)+(AC27*4)+(AC28*8)+(AC29*16)+(AC30*32)+(AC31*64)+(AC32*128) -> 36 | AD34: =(AD25*1)+(AD26*2)+(AD27*4)+(AD28*8)+(AD29*16)+(AD30*32)+(AD31*64)+(AD32*128) -> 60 | AE34: =(AE25*1)+(AE26*2)+(AE27*4)+(AE28*8)+(AE29*16)+(AE30*32)+(AE31*64)+(AE32*128) -> 0 | AF34: =(AF25*1)+(AF26*2)+(AF27*4)+(AF28*8)+(AF29*16)+(AF30*32)+(AF31*64)+(AF32*128) -> 0
A37: 0 | B37: 0 | C37: 0 | D37: 0 | E37: 0 | F37: 0 | G37: 0 | H37: 0 | M37: 0 | N37: 0 | O37: 0 | P37: 0 | Q37: 0 | R37: 0 | S37: 0 | T37: 0 | Y37: 0 | Z37: 0 | AA37: 0 | AB37: 0 | AC37: 0 | AD37: 0 | AE37: 0 | AF37: 0
A38: 0 | B38: 1 | C38: 0 | D38: 0 | E38: 0 | F38: 0 | G38: 1 | H38: 0 | M38: 1 | N38: 0 | O38: 0 | P38: 1 | Q38: 0 | R38: 0 | S38: 0 | T38: 0 | Y38: 0 | Z38: 0 | AA38: 0 | AB38: 0 | AC38: 0 | AD38: 0 | AE38: 0 | AF38: 0
A39: 0 | B39: 0 | C39: 1 | D39: 0 | E39: 0 | F39: 1 | G39: 0 | H39: 0 | J39: =A46&","&B46&","&C46&","&D46&","&E46&","&F46&","&G46&","&H46 -> 0,66,36,24,24,36,66,0 | M39: 1 | N39: 0 | O39: 0 | P39: 1 | Q39: 0 | R39: 0 | S39: 0 | T39: 0 | V39: =M46&","&N46&","&O46&","&P46&","&Q46&","&R46&","&S46&","&T46 -> 30,16,16,254,0,240,80,32 | Y39: 0 | Z39: 0 | AA39: 0 | AB39: 0 | AC39: 0 | AD39: 0 | AE39: 0 | AF39: 0 | AH39: =Y46&","&Z46&","&AA46&","&AB46&","&AC46&","&AD46&","&AE46&","&AF46 -> 0,0,0,24,24,0,0,0
A40: 0 | B40: 0 | C40: 0 | D40: 1 | E40: 1 | F40: 0 | G40: 0 | H40: 0 | M40: 1 | N40: 0 | O40: 0 | P40: 1 | Q40: 0 | R40: 0 | S40: 0 | T40: 0 | Y40: 0 | Z40: 0 | AA40: 0 | AB40: 1 | AC40: 1 | AD40: 0 | AE40: 0 | AF40: 0
A41: 0 | B41: 0 | C41: 0 | D41: 1 | E41: 1 | F41: 0 | G41: 0 | H41: 0 | M41: 1 | N41: 1 | O41: 1 | P41: 1 | Q41: 0 | R41: 1 | S41: 1 | T41: 0 | Y41: 0 | Z41: 0 | AA41: 0 | AB41: 1 | AC41: 1 | AD41: 0 | AE41: 0 | AF41: 0
A42: 0 | B42: 0 | C42: 1 | D42: 0 | E42: 0 | F42: 1 | G42: 0 | H42: 0 | M42: 0 | N42: 0 | O42: 0 | P42: 1 | Q42: 0 | R42: 1 | S42: 0 | T42: 1 | Y42: 0 | Z42: 0 | AA42: 0 | AB42: 0 | AC42: 0 | AD42: 0 | AE42: 0 | AF42: 0
A43: 0 | B43: 1 | C43: 0 | D43: 0 | E43: 0 | F43: 0 | G43: 1 | H43: 0 | M43: 0 | N43: 0 | O43: 0 | P43: 1 | Q43: 0 | R43: 1 | S43: 1 | T43: 0 | Y43: 0 | Z43: 0 | AA43: 0 | AB43: 0 | AC43: 0 | AD43: 0 | AE43: 0 | AF43: 0
A44: 0 | B44: 0 | C44: 0 | D44: 0 | E44: 0 | F44: 0 | G44: 0 | H44: 0 | M44: 0 | N44: 0 | O44: 0 | P44: 1 | Q44: 0 | R44: 1 | S44: 0 | T44: 0 | Y44: 0 | Z44: 0 | AA44: 0 | AB44: 0 | AC44: 0 | AD44: 0 | AE44: 0 | AF44: 0
A46: =(A37*1)+(A38*2)+(A39*4)+(A40*8)+(A41*16)+(A42*32)+(A43*64)+(A44*128) -> 0 | B46: =(B37*1)+(B38*2)+(B39*4)+(B40*8)+(B41*16)+(B42*32)+(B43*64)+(B44*128) -> 66 | C46: =(C37*1)+(C38*2)+(C39*4)+(C40*8)+(C41*16)+(C42*32)+(C43*64)+(C44*128) -> 36 | D46: =(D37*1)+(D38*2)+(D39*4)+(D40*8)+(D41*16)+(D42*32)+(D43*64)+(D44*128) -> 24 | E46: =(E37*1)+(E38*2)+(E39*4)+(E40*8)+(E41*16)+(E42*32)+(E43*64)+(E44*128) -> 24 | F46: =(F37*1)+(F38*2)+(F39*4)+(F40*8)+(F41*16)+(F42*32)+(F43*64)+(F44*128) -> 36 | G46: =(G37*1)+(G38*2)+(G39*4)+(G40*8)+(G41*16)+(G42*32)+(G43*64)+(G44*128) -> 66 | H46: =(H37*1)+(H38*2)+(H39*4)+(H40*8)+(H41*16)+(H42*32)+(H43*64)+(H44*128) -> 0 | M46: =(M37*1)+(M38*2)+(M39*4)+(M40*8)+(M41*16)+(M42*32)+(M43*64)+(M44*128) -> 30 | N46: =(N37*1)+(N38*2)+(N39*4)+(N40*8)+(N41*16)+(N42*32)+(N43*64)+(N44*128) -> 16 | O46: =(O37*1)+(O38*2)+(O39*4)+(O40*8)+(O41*16)+(O42*32)+(O43*64)+(O44*128) -> 16 | P46: =(P37*1)+(P38*2)+(P39*4)+(P40*8)+(P41*16)+(P42*32)+(P43*64)+(P44*128) -> 254 | Q46: =(Q37*1)+(Q38*2)+(Q39*4)+(Q40*8)+(Q41*16)+(Q42*32)+(Q43*64)+(Q44*128) -> 0 | R46: =(R37*1)+(R38*2)+(R39*4)+(R40*8)+(R41*16)+(R42*32)+(R43*64)+(R44*128) -> 240 | S46: =(S37*1)+(S38*2)+(S39*4)+(S40*8)+(S41*16)+(S42*32)+(S43*64)+(S44*128) -> 80 | T46: =(T37*1)+(T38*2)+(T39*4)+(T40*8)+(T41*16)+(T42*32)+(T43*64)+(T44*128) -> 32 | Y46: =(Y37*1)+(Y38*2)+(Y39*4)+(Y40*8)+(Y41*16)+(Y42*32)+(Y43*64)+(Y44*128) -> 0 | Z46: =(Z37*1)+(Z38*2)+(Z39*4)+(Z40*8)+(Z41*16)+(Z42*32)+(Z43*64)+(Z44*128) -> 0 | AA46: =(AA37*1)+(AA38*2)+(AA39*4)+(AA40*8)+(AA41*16)+(AA42*32)+(AA43*64)+(AA44*128) -> 0 | AB46: =(AB37*1)+(AB38*2)+(AB39*4)+(AB40*8)+(AB41*16)+(AB42*32)+(AB43*64)+(AB44*128) -> 24 | AC46: =(AC37*1)+(AC38*2)+(AC39*4)+(AC40*8)+(AC41*16)+(AC42*32)+(AC43*64)+(AC44*128) -> 24 | AD46: =(AD37*1)+(AD38*2)+(AD39*4)+(AD40*8)+(AD41*16)+(AD42*32)+(AD43*64)+(AD44*128) -> 0 | AE46: =(AE37*1)+(AE38*2)+(AE39*4)+(AE40*8)+(AE41*16)+(AE42*32)+(AE43*64)+(AE44*128) -> 0 | AF46: =(AF37*1)+(AF38*2)+(AF39*4)+(AF40*8)+(AF41*16)+(AF42*32)+(AF43*64)+(AF44*128) -> 0
A49: 0 | B49: 0 | C49: 0 | D49: 0 | E49: 0 | F49: 0 | G49: 0 | H49: 0
A50: 0 | B50: 1 | C50: 1 | D50: 1 | E50: 1 | F50: 1 | G50: 1 | H50: 0
A51: 0 | B51: 1 | C51: 0 | D51: 0 | E51: 0 | F51: 0 | G51: 1 | H51: 0 | J51: =A58&","&B58&","&C58&","&D58&","&E58&","&F58&","&G58&","&H58 -> 0,126,66,66,66,66,126,0
A52: 0 | B52: 1 | C52: 0 | D52: 0 | E52: 0 | F52: 0 | G52: 1 | H52: 0
A53: 0 | B53: 1 | C53: 0 | D53: 0 | E53: 0 | F53: 0 | G53: 1 | H53: 0
A54: 0 | B54: 1 | C54: 0 | D54: 0 | E54: 0 | F54: 0 | G54: 1 | H54: 0
A55: 0 | B55: 1 | C55: 1 | D55: 1 | E55: 1 | F55: 1 | G55: 1 | H55: 0
A56: 0 | B56: 0 | C56: 0 | D56: 0 | E56: 0 | F56: 0 | G56: 0 | H56: 0
A58: =(A49*1)+(A50*2)+(A51*4)+(A52*8)+(A53*16)+(A54*32)+(A55*64)+(A56*128) -> 0 | B58: =(B49*1)+(B50*2)+(B51*4)+(B52*8)+(B53*16)+(B54*32)+(B55*64)+(B56*128) -> 126 | C58: =(C49*1)+(C50*2)+(C51*4)+(C52*8)+(C53*16)+(C54*32)+(C55*64)+(C56*128) -> 66 | D58: =(D49*1)+(D50*2)+(D51*4)+(D52*8)+(D53*16)+(D54*32)+(D55*64)+(D56*128) -> 66 | E58: =(E49*1)+(E50*2)+(E51*4)+(E52*8)+(E53*16)+(E54*32)+(E55*64)+(E56*128) -> 66 | F58: =(F49*1)+(F50*2)+(F51*4)+(F52*8)+(F53*16)+(F54*32)+(F55*64)+(F56*128) -> 66 | G58: =(G49*1)+(G50*2)+(G51*4)+(G52*8)+(G53*16)+(G54*32)+(G55*64)+(G56*128) -> 126 | H58: =(H49*1)+(H50*2)+(H51*4)+(H52*8)+(H53*16)+(H54*32)+(H55*64)+(H56*128) -> 0
